[Event "Late-Titled-Tuesday-Blitz-February-13-2024"]
[Site "Chess.com"]
[Date "2024.02.13"]
[Round "8"]
[White "reevecanada"]
[Black "SouS007"]
[Result "0-1"]
[WhiteElo "2557"]
[BlackElo "2502"]
[TimeControl "180+1"]
[EndTime "15:28:50 PST"]
[Termination "SouS007 won on time"]

1. e4 {[%clk 0:03:00.9]} 1... e6 {[%clk 0:02:54.1]} 2. Nf3 {[%clk 0:02:59.8]}
2... d5 {[%clk 0:02:52.9]} 3. Nc3 {[%clk 0:03:00]} 3... dxe4 {[%clk 0:02:44.1]}
4. Nxe4 {[%clk 0:02:59.6]} 4... Bd7 {[%clk 0:02:43.9]} 5. d4 {[%clk 0:02:55.6]}
5... Bc6 {[%clk 0:02:42.9]} 6. Bd3 {[%clk 0:02:52.9]} 6... Nd7 {[%clk
0:02:40.7]} 7. O-O {[%clk 0:02:49.4]} 7... Ngf6 {[%clk 0:02:38.2]} 8. Re1 {[%clk
0:02:46.1]} 8... Nxe4 {[%clk 0:02:30.9]} 9. Bxe4 {[%clk 0:02:39.8]} 9... Bxe4
{[%clk 0:02:31.8]} 10. Rxe4 {[%clk 0:02:39.5]} 10... Nf6 {[%clk 0:02:32.7]} 11.
Bg5 {[%clk 0:02:38.2]} 11... Be7 {[%clk 0:02:28.5]} 12. Bxf6 {[%clk 0:02:35.6]}
12... Bxf6 {[%clk 0:02:29.4]} 13. Qe2 {[%clk 0:02:34.8]} 13... O-O {[%clk
0:02:25.4]} 14. Re1 {[%clk 0:02:32.9]} 14... Qd5 {[%clk 0:02:16]} 15. c4 {[%clk
0:02:30.1]} 15... Qa5 {[%clk 0:02:12.9]} 16. b3 {[%clk 0:02:26.7]} 16... Rad8
{[%clk 0:02:08.3]} 17. h4 {[%clk 0:02:12.3]} 17... c5 {[%clk 0:02:05]} 18. dxc5
{[%clk 0:02:08.6]} 18... Qxc5 {[%clk 0:02:03.3]} 19. g4 {[%clk 0:02:07.5]} 19...
Be7 {[%clk 0:01:35.7]} 20. Kg2 {[%clk 0:02:01]} 20... Rd6 {[%clk 0:01:31.5]} 21.
h5 {[%clk 0:01:54.4]} 21... h6 {[%clk 0:01:27.2]} 22. Re5 {[%clk 0:01:49.6]}
22... Qc7 {[%clk 0:01:26.5]} 23. Qe3 {[%clk 0:01:41]} 23... Bf6 {[%clk
0:01:21.8]} 24. Re4 {[%clk 0:01:40.3]} 24... b6 {[%clk 0:01:20.9]} 25. Re2
{[%clk 0:01:20.7]} 25... Rfd8 {[%clk 0:01:19.5]} 26. Qf4 {[%clk 0:01:14.5]}
26... Qc5 {[%clk 0:01:09.4]} 27. Ne5 {[%clk 0:01:09.6]} 27... Rd4 {[%clk
0:00:49.8]} 28. Nf3 {[%clk 0:00:59.9]} 28... Rd3 {[%clk 0:00:44.2]} 29. R2e3
{[%clk 0:00:53.3]} 29... Rd1 {[%clk 0:00:43]} 30. Ne5 {[%clk 0:00:44.2]} 30...
R1d4 {[%clk 0:00:37.3]} 31. Nf3 {[%clk 0:00:27.8]} 31... Rxe4 {[%clk 0:00:36.9]}
32. Qxe4 {[%clk 0:00:26.6]} 32... Qc7 {[%clk 0:00:32.6]} 33. Re2 {[%clk
0:00:26.3]} 33... Bc3 {[%clk 0:00:28.4]} 34. g5 {[%clk 0:00:24.5]} 34... hxg5
{[%clk 0:00:26.8]} 35. Nxg5 {[%clk 0:00:25.2]} 35... Rd4 {[%clk 0:00:26.1]} 36.
Qh7+ {[%clk 0:00:23.5]} 36... Kf8 {[%clk 0:00:25.1]} 37. Qh8+ {[%clk 0:00:21]}
37... Ke7 {[%clk 0:00:25.5]} 38. Nxe6 {[%clk 0:00:19.2]} 38... Rg4+ {[%clk
0:00:23]} 39. Kf3 {[%clk 0:00:18.4]} 39... fxe6 {[%clk 0:00:15.8]} 40. Kxg4
{[%clk 0:00:18.1]} 40... Qh2 {[%clk 0:00:16]} 41. Re3 {[%clk 0:00:12.5]} 41...
Qg2+ {[%clk 0:00:14]} 42. Rg3 {[%clk 0:00:12.9]} 42... Qe4+ {[%clk 0:00:14.2]}
43. Kh3 {[%clk 0:00:11.1]} 43... Qh1+ {[%clk 0:00:14.5]} 44. Kg4 {[%clk
0:00:11.2]} 44... Qd1+ {[%clk 0:00:15.2]} 45. f3 {[%clk 0:00:10.8]} 45... Qd3
{[%clk 0:00:06.5]} 46. Kh3 {[%clk 0:00:09]} 46... Qf1+ {[%clk 0:00:06.1]} 47.
Kg4 {[%clk 0:00:07.8]} 47... Qb1 {[%clk 0:00:06.3]} 48. Kf4 {[%clk 0:00:02]}
48... Bd2+ {[%clk 0:00:04.8]} 0-1

[Event "Late-Titled-Tuesday-Blitz-February-13-2024"]
[Site "Chess.com"]
[Date "2024.02.13"]
[Round "8"]
[White "Shankland"]
[Black "Jospem"]
[Result "1/2-1/2"]
[WhiteElo "2951"]
[BlackElo "3037"]
[TimeControl "180+1"]
[EndTime "15:28:51 PST"]
[Termination "Game drawn by repetition"]

1. d4 {[%clk 0:03:00.9]} 1... Nf6 {[%clk 0:03:00.1]} 2. c4 {[%clk 0:03:01.4]}
2... e6 {[%clk 0:03:00.7]} 3. Nc3 {[%clk 0:03:02]} 3... Bb4 {[%clk 0:03:01.4]}
4. Qc2 {[%clk 0:03:02.2]} 4... d6 {[%clk 0:03:01.5]} 5. Nf3 {[%clk 0:03:00.9]}
5... Nbd7 {[%clk 0:02:57.3]} 6. Bd2 {[%clk 0:02:58.5]} 6... c5 {[%clk
0:02:53.7]} 7. a3 {[%clk 0:02:57.9]} 7... Bxc3 {[%clk 0:02:51]} 8. Bxc3 {[%clk
0:02:57.7]} 8... b6 {[%clk 0:02:51.6]} 9. e4 {[%clk 0:02:49.5]} 9... Bb7 {[%clk
0:02:51.1]} 10. d5 {[%clk 0:02:49.5]} 10... O-O {[%clk 0:02:51.2]} 11. Bd3
{[%clk 0:02:48.7]} 11... Re8 {[%clk 0:02:50.5]} 12. O-O {[%clk 0:02:48.4]} 12...
e5 {[%clk 0:02:47]} 13. g3 {[%clk 0:02:46.9]} 13... Nf8 {[%clk 0:02:47.1]} 14.
Nh4 {[%clk 0:02:46.5]} 14... Ng6 {[%clk 0:02:47]} 15. Nf5 {[%clk 0:02:44.6]}
15... Bc8 {[%clk 0:02:47.3]} 16. Rae1 {[%clk 0:02:44.1]} 16... Bxf5 {[%clk
0:02:47.3]} 17. exf5 {[%clk 0:02:44.2]} 17... Nf8 {[%clk 0:02:48]} 18. f3 {[%clk
0:02:41.6]} 18... a6 {[%clk 0:02:45.3]} 19. a4 {[%clk 0:02:41]} 19... Qc7 {[%clk
0:02:26.1]} 20. Qd2 {[%clk 0:02:34.8]} 20... b5 {[%clk 0:02:01.7]} 21. b3 {[%clk
0:02:20.4]} 21... bxa4 {[%clk 0:01:58.1]} 22. bxa4 {[%clk 0:02:20.6]} 22... Rab8
{[%clk 0:01:57.9]} 23. Bc2 {[%clk 0:02:13.7]} 23... N8d7 {[%clk 0:01:56.4]} 24.
g4 {[%clk 0:02:10.9]} 24... Nb6 {[%clk 0:01:39.7]} 25. Qd3 {[%clk 0:02:08.4]}
25... Qd7 {[%clk 0:01:11.7]} 26. a5 {[%clk 0:02:01.5]} 26... Na4 {[%clk
0:01:00.5]} 27. Ba1 {[%clk 0:02:00.2]} 27... Nb2 {[%clk 0:01:00.3]} 28. Qc3
{[%clk 0:01:57]} 28... Na4 {[%clk 0:00:55.4]} 29. Qd3 {[%clk 0:01:39.8]} 29...
Rb4 {[%clk 0:00:55.6]} 30. Rb1 {[%clk 0:01:08]} 30... Reb8 {[%clk 0:00:54.8]}
31. f4 {[%clk 0:00:44]} 31... Nb2 {[%clk 0:00:39.5]} 32. Bxb2 {[%clk 0:00:41.3]}
32... Rxb2 {[%clk 0:00:40.4]} 33. g5 {[%clk 0:00:37.8]} 33... Nh5 {[%clk
0:00:35.8]} 34. fxe5 {[%clk 0:00:35.2]} 34... Rxb1 {[%clk 0:00:28.7]} 35. Rxb1
{[%clk 0:00:26.1]} 35... Rxb1+ {[%clk 0:00:28.8]} 36. Bxb1 {[%clk 0:00:26.7]}
36... dxe5 {[%clk 0:00:29.5]} 37. Qb3 {[%clk 0:00:27.2]} 37... Qd8 {[%clk
0:00:28.9]} 38. h4 {[%clk 0:00:26.3]} 38... h6 {[%clk 0:00:15.9]} 39. Qb6 {[%clk
0:00:26.2]} 39... Qe8 {[%clk 0:00:14.8]} 40. Bc2 {[%clk 0:00:19]} 40... hxg5
{[%clk 0:00:14.7]} 41. hxg5 {[%clk 0:00:19]} 41... e4 {[%clk 0:00:15.3]} 42. d6
{[%clk 0:00:19.4]} 42... Qe5 {[%clk 0:00:13.3]} 43. Qd8+ {[%clk 0:00:18]} 43...
Kh7 {[%clk 0:00:13.5]} 44. d7 {[%clk 0:00:16.7]} 44... Qg3+ {[%clk 0:00:09.5]}
45. Kf1 {[%clk 0:00:17]} 45... Qf3+ {[%clk 0:00:05]} 46. Ke1 {[%clk 0:00:17.2]}
46... Qe3+ {[%clk 0:00:03.9]} 47. Kd1 {[%clk 0:00:17.1]} 47... Qg1+ {[%clk
0:00:04.6]} 48. Kd2 {[%clk 0:00:17.2]} 48... Qd4+ {[%clk 0:00:05.3]} 49. Kc1
{[%clk 0:00:17.3]} 49... Qa1+ {[%clk 0:00:05.8]} 50. Kd2 {[%clk 0:00:17.7]}
50... Qd4+ {[%clk 0:00:06]} 51. Kc1 {[%clk 0:00:18.2]} 51... Qa1+ {[%clk
0:00:06.4]} 52. Kd2 {[%clk 0:00:18.6]} 52... Qd4+ {[%clk 0:00:07.1]} 1/2-1/2

[Event "Late-Titled-Tuesday-Blitz-February-13-2024"]
[Site "Chess.com"]
[Date "2024.02.13"]
[Round "8"]
[White "DonkyDonkyDonkey"]
[Black "baki83"]
[Result "0-1"]
[WhiteElo "2950"]
[BlackElo "2878"]
[TimeControl "180+1"]
[EndTime "15:28:54 PST"]
[Termination "baki83 won by checkmate"]

1. d4 {[%clk 0:03:00.9]} 1... d5 {[%clk 0:02:59.9]} 2. Nc3 {[%clk 0:03:01.1]}
2... Bf5 {[%clk 0:02:58.8]} 3. Bf4 {[%clk 0:03:01.4]} 3... e6 {[%clk 0:02:56.4]}
4. e3 {[%clk 0:03:01.1]} 4... Nf6 {[%clk 0:02:55.5]} 5. Bd3 {[%clk 0:03:01.2]}
5... Bd6 {[%clk 0:02:54.7]} 6. Nge2 {[%clk 0:02:57.4]} 6... O-O {[%clk
0:02:53.2]} 7. O-O {[%clk 0:02:57.1]} 7... Bxd3 {[%clk 0:02:50]} 8. cxd3 {[%clk
0:02:56.4]} 8... c5 {[%clk 0:02:48.2]} 9. dxc5 {[%clk 0:02:52.8]} 9... Bxc5
{[%clk 0:02:47.4]} 10. d4 {[%clk 0:02:53.5]} 10... Be7 {[%clk 0:02:45.5]} 11.
Qb3 {[%clk 0:02:49.6]} 11... Qd7 {[%clk 0:02:42.1]} 12. Rac1 {[%clk 0:02:45.6]}
12... Nc6 {[%clk 0:02:41.9]} 13. Bg3 {[%clk 0:02:45.7]} 13... Rfc8 {[%clk
0:02:39.5]} 14. Nf4 {[%clk 0:02:45.3]} 14... Na5 {[%clk 0:02:34.3]} 15. Qd1
{[%clk 0:02:44.6]} 15... Bb4 {[%clk 0:02:29.5]} 16. Nd3 {[%clk 0:02:36]} 16...
Bxc3 {[%clk 0:02:29.5]} 17. bxc3 {[%clk 0:02:36.9]} 17... Nc4 {[%clk 0:02:27.9]}
18. Qe2 {[%clk 0:02:25.4]} 18... b6 {[%clk 0:02:25.9]} 19. f3 {[%clk 0:02:24]}
19... Qb7 {[%clk 0:02:25.5]} 20. Bh4 {[%clk 0:02:21.4]} 20... Nd7 {[%clk
0:02:25.3]} 21. e4 {[%clk 0:02:21.4]} 21... Qa6 {[%clk 0:02:20.6]} 22. Nf4
{[%clk 0:02:12.2]} 22... Qb7 {[%clk 0:02:14.1]} 23. Rfe1 {[%clk 0:02:08.9]}
23... Nf8 {[%clk 0:02:12.4]} 24. Qd3 {[%clk 0:01:57.6]} 24... Ng6 {[%clk
0:02:07.8]} 25. Nxg6 {[%clk 0:01:52.6]} 25... hxg6 {[%clk 0:02:08.7]} 26. Bg3
{[%clk 0:01:50.7]} 26... b5 {[%clk 0:02:04]} 27. h4 {[%clk 0:01:50.4]} 27... a5
{[%clk 0:02:03.7]} 28. Rb1 {[%clk 0:01:48.3]} 28... Qc6 {[%clk 0:02:03.3]} 29.
exd5 {[%clk 0:01:43.8]} 29... Qxd5 {[%clk 0:02:02.7]} 30. Qe4 {[%clk 0:01:36.3]}
30... Qd7 {[%clk 0:01:40.8]} 31. Rbd1 {[%clk 0:01:33.4]} 31... Nb2 {[%clk
0:01:27.3]} 32. Rd2 {[%clk 0:01:31.8]} 32... Na4 {[%clk 0:01:26.2]} 33. Re3
{[%clk 0:01:08.9]} 33... Ra6 {[%clk 0:01:25.3]} 34. Rdd3 {[%clk 0:00:59]} 34...
Nb2 {[%clk 0:01:12.3]} 35. d5 {[%clk 0:00:49]} 35... Nxd3 {[%clk 0:01:12.2]} 36.
Rxd3 {[%clk 0:00:49.9]} 36... exd5 {[%clk 0:01:08.1]} 37. Rxd5 {[%clk
0:00:50.8]} 37... Qe6 {[%clk 0:01:04.6]} 38. Qd3 {[%clk 0:00:50.6]} 38... b4
{[%clk 0:01:02]} 39. c4 {[%clk 0:00:47.8]} 39... Rac6 {[%clk 0:01:00.6]} 40. h5
{[%clk 0:00:47.4]} 40... Rxc4 {[%clk 0:00:55.5]} 41. Re5 {[%clk 0:00:31.3]}
41... Qb6+ {[%clk 0:00:45.6]} 42. Kh2 {[%clk 0:00:31.4]} 42... R4c5 {[%clk
0:00:42.2]} 43. Qd7 {[%clk 0:00:18.5]} 43... Qc6 {[%clk 0:00:37.4]} 44. Qg4
{[%clk 0:00:10.8]} 44... gxh5 {[%clk 0:00:33.2]} 45. Qg5 {[%clk 0:00:06.5]}
45... Rxe5 {[%clk 0:00:31.4]} 46. Qxe5 {[%clk 0:00:07.4]} 46... h4 {[%clk
0:00:27.3]} 47. Bxh4 {[%clk 0:00:07.2]} 47... Qc7 {[%clk 0:00:27.1]} 48. Qxc7
{[%clk 0:00:06.2]} 48... Rxc7 {[%clk 0:00:28]} 49. Bd8 {[%clk 0:00:06.6]} 49...
Rc5 {[%clk 0:00:27.9]} 50. Kg3 {[%clk 0:00:06.9]} 50... Rb5 {[%clk 0:00:28.4]}
51. Bc7 {[%clk 0:00:06.1]} 51... a4 {[%clk 0:00:28.8]} 52. Kf2 {[%clk
0:00:05.5]} 52... b3 {[%clk 0:00:29.4]} 53. axb3 {[%clk 0:00:06.3]} 53... axb3
{[%clk 0:00:30]} 54. Be5 {[%clk 0:00:07.2]} 54... b2 {[%clk 0:00:30.5]} 55. Bxb2
{[%clk 0:00:08.1]} 55... Rxb2+ {[%clk 0:00:30.1]} 56. Kg3 {[%clk 0:00:08.7]}
56... g6 {[%clk 0:00:30.7]} 57. Kh4 {[%clk 0:00:09.6]} 57... Kg7 {[%clk
0:00:31.4]} 58. g4 {[%clk 0:00:10.5]} 58... f6 {[%clk 0:00:32.1]} 59. g5 {[%clk
0:00:11.4]} 59... fxg5+ {[%clk 0:00:32.3]} 60. Kg4 {[%clk 0:00:12.3]} 60... Rb3
{[%clk 0:00:31.5]} 61. Kh3 {[%clk 0:00:13.2]} 61... Kf6 {[%clk 0:00:30.6]} 62.
Kg3 {[%clk 0:00:14.1]} 62... Kf5 {[%clk 0:00:30.3]} 63. Kh3 {[%clk 0:00:14.6]}
63... Rxf3+ {[%clk 0:00:30.5]} 64. Kh2 {[%clk 0:00:15.5]} 64... g4 {[%clk
0:00:31]} 65. Kg2 {[%clk 0:00:15.8]} 65... Kf4 {[%clk 0:00:31.6]} 66. Kh2 {[%clk
0:00:16.7]} 66... g3+ {[%clk 0:00:30.9]} 67. Kg2 {[%clk 0:00:17.6]} 67... Rf2+
{[%clk 0:00:30.8]} 68. Kh3 {[%clk 0:00:18]} 68... Rh2# {[%clk 0:00:31.1]} 0-1

[Event "Late-Titled-Tuesday-Blitz-February-13-2024"]
[Site "Chess.com"]
[Date "2024.02.13"]
[Round "8"]
[White "martinmena"]
[Black "dolynachess"]
[Result "0-1"]
[WhiteElo "2169"]
[BlackElo "2481"]
[TimeControl "180+1"]
[EndTime "15:28:55 PST"]
[Termination "dolynachess won on time"]

1. c4 {[%clk 0:03:00.9]} 1... Nf6 {[%clk 0:02:59.2]} 2. g3 {[%clk 0:03:00.7]}
2... c5 {[%clk 0:02:59.3]} 3. Bg2 {[%clk 0:03:00.9]} 3... g6 {[%clk 0:02:58.9]}
4. Nc3 {[%clk 0:03:01.4]} 4... Bg7 {[%clk 0:02:59.8]} 5. e4 {[%clk 0:03:01.6]}
5... O-O {[%clk 0:02:59.6]} 6. Nge2 {[%clk 0:02:57.8]} 6... Nc6 {[%clk
0:02:59.9]} 7. O-O {[%clk 0:02:57.5]} 7... Ne8 {[%clk 0:03:00.1]} 8. d3 {[%clk
0:02:57.5]} 8... Nc7 {[%clk 0:03:00.2]} 9. Be3 {[%clk 0:02:56.7]} 9... Ne6
{[%clk 0:03:00.6]} 10. f4 {[%clk 0:02:56.8]} 10... Rb8 {[%clk 0:02:59.5]} 11. f5
{[%clk 0:02:55.2]} 11... Ned4 {[%clk 0:02:59.2]} 12. Qd2 {[%clk 0:02:53.6]}
12... d6 {[%clk 0:02:58.3]} 13. Bh6 {[%clk 0:02:49]} 13... b5 {[%clk 0:02:50.2]}
14. Bxg7 {[%clk 0:02:48.3]} 14... Kxg7 {[%clk 0:02:49.3]} 15. Nxd4 {[%clk
0:02:40.3]} 15... Nxd4 {[%clk 0:02:48.6]} 16. cxb5 {[%clk 0:02:36.4]} 16... a6
{[%clk 0:02:26.8]} 17. bxa6 {[%clk 0:02:28.7]} 17... Bxa6 {[%clk 0:02:27.7]} 18.
Nd5 {[%clk 0:02:27.5]} 18... f6 {[%clk 0:02:18.2]} 19. b3 {[%clk 0:02:15.2]}
19... g5 {[%clk 0:02:12.7]} 20. h4 {[%clk 0:02:08.3]} 20... h6 {[%clk
0:02:12.6]} 21. Kf2 {[%clk 0:02:05.8]} 21... Rh8 {[%clk 0:02:09.9]} 22. Rh1
{[%clk 0:02:02.3]} 22... Qd7 {[%clk 0:02:03.9]} 23. hxg5 {[%clk 0:01:58.9]}
23... hxg5 {[%clk 0:02:04.8]} 24. Rag1 {[%clk 0:01:30.5]} 24... Kf7 {[%clk
0:01:59.5]} 25. Qd1 {[%clk 0:01:26.2]} 25... Qb5 {[%clk 0:01:53.4]} 26. Rxh8
{[%clk 0:01:11]} 26... Rxh8 {[%clk 0:01:51.7]} 27. Rh1 {[%clk 0:01:11.3]} 27...
Rxh1 {[%clk 0:01:26.4]} 28. Qxh1 {[%clk 0:01:10.8]} 28... Qb7 {[%clk 0:00:26.2]}
29. Qh7+ {[%clk 0:00:25.7]} 29... Ke8 {[%clk 0:00:22.2]} 30. Nxf6+ {[%clk
0:00:23.1]} 30... exf6 {[%clk 0:00:21.4]} 31. Qg8+ {[%clk 0:00:14.2]} 31... Kd7
{[%clk 0:00:18.5]} 32. Qf7+ {[%clk 0:00:14.3]} 32... Kc8 {[%clk 0:00:18]} 33.
Qe8+ {[%clk 0:00:14.2]} 33... Kc7 {[%clk 0:00:17.9]} 34. e5 {[%clk 0:00:13.9]}
34... Qc8 {[%clk 0:00:15.4]} 35. exd6+ {[%clk 0:00:13.2]} 35... Kxd6 {[%clk
0:00:12.7]} 36. Qxc8 {[%clk 0:00:06.7]} 36... Bxc8 {[%clk 0:00:12.1]} 37. g4
{[%clk 0:00:07.1]} 37... Ke5 {[%clk 0:00:07.6]} 38. Ke3 {[%clk 0:00:06.9]} 38...
Ba6 {[%clk 0:00:06.7]} 39. Be4 {[%clk 0:00:04.8]} 39... Nc2+ {[%clk 0:00:05.1]}
40. Kf3 {[%clk 0:00:04.4]} 40... Kd4 {[%clk 0:00:03.8]} 41. Ke2 {[%clk
0:00:03.8]} 41... Nb4 {[%clk 0:00:03.4]} 42. a3 {[%clk 0:00:02.6]} 42... Nc2
{[%clk 0:00:03.2]} 43. a4 {[%clk 0:00:01.8]} 43... Nb4 {[%clk 0:00:03.4]} 44.
Kf3 {[%clk 0:00:02.2]} 44... Nxd3 {[%clk 0:00:03.6]} 45. Bc6 {[%clk 0:00:01.5]}
45... Ne5+ {[%clk 0:00:04.5]} 46. Kf2 {[%clk 0:00:01.3]} 46... Nxc6 {[%clk
0:00:05.1]} 0-1

[Event "Late-Titled-Tuesday-Blitz-February-13-2024"]
[Site "Chess.com"]
[Date "2024.02.13"]
[Round "8"]
[White "Teidi96"]
[Black "szefru"]
[Result "1-0"]
[WhiteElo "2285"]
[BlackElo "2250"]
[TimeControl "180+1"]
[EndTime "15:28:56 PST"]
[Termination "Teidi96 won by resignation"]

1. e4 {[%clk 0:03:00.9]} 1... Nf6 {[%clk 0:02:59.7]} 2. e5 {[%clk 0:03:00.7]}
2... Nd5 {[%clk 0:02:59.9]} 3. c4 {[%clk 0:03:01.2]} 3... Nb6 {[%clk 0:03:00.1]}
4. d4 {[%clk 0:03:02]} 4... d6 {[%clk 0:03:00.4]} 5. exd6 {[%clk 0:03:02.9]}
5... exd6 {[%clk 0:03:00.7]} 6. Nc3 {[%clk 0:03:03.8]} 6... Be7 {[%clk
0:03:00.6]} 7. Be3 {[%clk 0:03:04.7]} 7... O-O {[%clk 0:03:01.2]} 8. Bd3 {[%clk
0:03:05.6]} 8... Nc6 {[%clk 0:03:01.1]} 9. Nge2 {[%clk 0:03:06.5]} 9... Bf6
{[%clk 0:03:01.3]} 10. O-O {[%clk 0:03:06.9]} 10... Bg4 {[%clk 0:03:01.2]} 11.
f3 {[%clk 0:03:06]} 11... Re8 {[%clk 0:03:00.4]} 12. Bf2 {[%clk 0:03:00]} 12...
Bh5 {[%clk 0:02:57.3]} 13. b3 {[%clk 0:02:46.6]} 13... d5 {[%clk 0:02:52.2]} 14.
c5 {[%clk 0:02:46.4]} 14... Nc8 {[%clk 0:02:46.9]} 15. Nf4 {[%clk 0:02:44.6]}
15... Bg6 {[%clk 0:02:46.4]} 16. Bxg6 {[%clk 0:02:44.2]} 16... hxg6 {[%clk
0:02:46.3]} 17. Nfxd5 {[%clk 0:02:44.7]} 17... N8e7 {[%clk 0:02:22.6]} 18. Nxf6+
{[%clk 0:02:42.6]} 18... gxf6 {[%clk 0:02:23.5]} 19. d5 {[%clk 0:02:40.7]} 19...
Ne5 {[%clk 0:02:21.6]} 20. Qd2 {[%clk 0:02:24.8]} 20... Nf5 {[%clk 0:02:20.9]}
21. Rad1 {[%clk 0:02:23.1]} 21... Kg7 {[%clk 0:02:18.4]} 22. Bg3 {[%clk
0:02:14.3]} 22... Rh8 {[%clk 0:02:11.1]} 23. Rfe1 {[%clk 0:02:10.7]} 23... Nxg3
{[%clk 0:01:35.8]} 24. hxg3 {[%clk 0:02:11.6]} 24... Qg8 {[%clk 0:01:33.7]} 25.
Ne4 {[%clk 0:02:00.4]} 25... Re8 {[%clk 0:01:16.9]} 26. Nxf6 {[%clk 0:01:55.7]}
26... Kxf6 {[%clk 0:01:16.4]} 27. Qf4+ {[%clk 0:01:55.8]} 27... Kg7 {[%clk
0:01:12.3]} 28. Rxe5 {[%clk 0:01:56.4]} 28... Qh7 {[%clk 0:01:11]} 29. Kf2
{[%clk 0:01:53]} 29... Rd8 {[%clk 0:00:45.2]} 30. Re7 {[%clk 0:01:50.3]} 30...
Rhf8 {[%clk 0:00:44.8]} 31. d6 {[%clk 0:01:44.3]} 31... cxd6 {[%clk 0:00:44.1]}
32. cxd6 {[%clk 0:01:39.1]} 32... Qh5 {[%clk 0:00:43.8]} 33. Qe5+ {[%clk
0:01:32.4]} 33... Qxe5 {[%clk 0:00:39.6]} 34. Rxe5 {[%clk 0:01:33.3]} 34... Kf6
{[%clk 0:00:39.1]} 35. Re7 {[%clk 0:01:32.6]} 35... Rxd6 {[%clk 0:00:39.2]} 36.
Rxf7+ {[%clk 0:01:25.2]} 36... Rxf7 {[%clk 0:00:40.1]} 37. Rxd6+ {[%clk
0:01:25]} 37... Kf5 {[%clk 0:00:39.5]} 38. Rd4 {[%clk 0:01:24]} 38... Rc7 {[%clk
0:00:38.8]} 39. Rc4 {[%clk 0:01:24]} 39... Rd7 {[%clk 0:00:35.9]} 40. g4+ {[%clk
0:01:23.2]} 40... Ke5 {[%clk 0:00:34.8]} 41. Re4+ {[%clk 0:01:21.7]} 41... Kf6
{[%clk 0:00:33.1]} 42. Ke3 {[%clk 0:01:19.8]} 42... b5 {[%clk 0:00:30.5]} 43. f4
{[%clk 0:01:14.7]} 43... Rc7 {[%clk 0:00:29.7]} 44. Rd4 {[%clk 0:01:12.2]} 44...
Rc2 {[%clk 0:00:27.1]} 45. Rd6+ {[%clk 0:01:10.9]} 45... Kf7 {[%clk 0:00:26]}
46. Ra6 {[%clk 0:01:07.3]} 46... Rxg2 {[%clk 0:00:24.9]} 47. Rxa7+ {[%clk
0:01:07.7]} 47... Ke6 {[%clk 0:00:24.5]} 48. Ra6+ {[%clk 0:01:05.5]} 48... Kf7
{[%clk 0:00:24.1]} 49. Kf3 {[%clk 0:01:03.8]} 49... Rc2 {[%clk 0:00:22.1]} 50.
g5 {[%clk 0:00:57.3]} 50... b4 {[%clk 0:00:19.3]} 51. Ra4 {[%clk 0:00:55.9]}
51... Rd2 {[%clk 0:00:16.4]} 52. Ke3 {[%clk 0:00:55.1]} 52... Rc2 {[%clk
0:00:14.6]} 53. Kd3 {[%clk 0:00:53.3]} 53... Rf2 {[%clk 0:00:14.6]} 54. Ke4
{[%clk 0:00:53.6]} 54... Ke6 {[%clk 0:00:13.9]} 55. Ra6+ {[%clk 0:00:52.9]}
55... Kf7 {[%clk 0:00:13.9]} 56. Rb6 {[%clk 0:00:49.5]} 56... Re2+ {[%clk
0:00:13.5]} 57. Kf3 {[%clk 0:00:48.7]} 57... Rxa2 {[%clk 0:00:13.8]} 58. Rxb4
{[%clk 0:00:49]} 58... Rc2 {[%clk 0:00:14.3]} 59. Rb6 {[%clk 0:00:47.5]} 59...
Rc3+ {[%clk 0:00:14.2]} 60. Ke4 {[%clk 0:00:47.1]} 60... Rc1 {[%clk 0:00:15]}
61. Kd4 {[%clk 0:00:46.4]} 61... Re1 {[%clk 0:00:13.8]} 62. Rf6+ {[%clk
0:00:44.8]} 62... Kg7 {[%clk 0:00:13.7]} 63. b4 {[%clk 0:00:43.9]} 63... Rb1
{[%clk 0:00:12.6]} 64. Kc5 {[%clk 0:00:43]} 64... Rc1+ {[%clk 0:00:12.9]} 65.
Kb6 {[%clk 0:00:42.7]} 1-0